fUST/lending_fUST_20250508
["ID","MTS","AMOUNT","RATE_DAILY","PERIOD"]
[360286926,1746708638217,-2240.0,0.00012149,2]
[360286927,1746708638226,-708.0,0.00012149,2]
[360286928,1746708638235,-635.0,0.000123,2]
[360286929,1746708638244,-400.0,0.00012328,2]
[360286930,1746708638256,-400.0,0.00012328,2]
[360286931,1746708638265,-427.6,0.00012328,2]
[360286932,1746708638275,-323.19446815,0.00012328,2]
[360286933,1746708638285,-9140.71658219,0.000124,2]
[360286934,1746708638294,-9140.71658211,0.000124,2]
[360286935,1746708638303,-9140.71658211,0.00012521,2]
[360286936,1746708638313,-400.0,0.00012602,2]
[360286937,1746708638322,-400.0,0.00012602,2]
[360286938,1746708638332,-427.6,0.00012602,2]
[360286939,1746708638341,-9140.71658211,0.00012831,2]
[360286940,1746708638351,-455.50835669,0.00012876,2]
[360286941,1746708638360,-2666.8,0.00012876,2]
[360286942,1746708638370,-2666.8,0.00012876,2]
[360286943,1746708638379,-2666.8,0.00012876,2]
[360286944,1746708638388,-2666.8,0.00012876,2]
[360286945,1746708638398,-2666.8,0.00012876,2]
[360286946,1746708638408,-2666.8,0.00012876,2]
[360286947,1746708638418,-2666.8,0.00012876,2]
[360286948,1746708638427,-2666.8,0.00012876,2]
[360286949,1746708638436,-2666.8,0.00012876,2]
[360286950,1746708638446,-2666.7,0.00012876,2]
[360286951,1746708638455,-151.955697,0.00012876,2]
[360286952,1746708638465,-400.0,0.00012876,2]
[360286953,1746708638474,-2200.0,0.00012876,2]
[360286954,1746708638483,-400.0,0.00012876,2]
[360286955,1746708638492,-400.0,0.00012876,2]
[360286956,1746708638501,-427.6,0.00012876,2]
[360286957,1746708638510,-2320.00929971,0.000129,2]
[360286958,1746708638519,-2320.0092997,0.000129,2]
[360286959,1746708638529,-500.0,0.00012979,2]
[360286960,1746708638538,-500.0,0.00012979,2]
[360286961,1746708638547,-500.0,0.00012979,2]
[360286962,1746708638556,-500.0,0.00012979,2]
[360286963,1746708638566,-500.0,0.00012979,2]
[360286964,1746708638576,-500.0,0.00012979,2]
[360286965,1746708638584,-500.0,0.00012979,2]
[360286966,1746708638594,-615.56946576,0.00012997,2]
[360286967,1746708638603,-1722.49429683,0.00013,2]
[360286968,1746708638612,-2504.75631962,0.00013,2]
[360286969,1746708638621,-500.0,0.0001303,2]
[360286970,1746708638630,-500.0,0.0001303,2]
[360286971,1746708638639,-500.0,0.0001303,2]
[360286972,1746708638648,-500.0,0.0001303,2]
[360286973,1746708638658,-501.49854421,0.0001303,2]
[360286974,1746708638667,-500.0,0.0001303,2]
[360286975,1746708638676,-1000.0,0.000131,2]
[360286976,1746708638686,-500.0,0.000131,2]
[360286977,1746708638695,-9140.71658211,0.00013141,2]
[360286978,1746708638704,-400.0,0.0001315,2]
[360286979,1746708638715,-400.0,0.0001315,2]
[360286980,1746708638724,-400.0,0.0001315,2]
[360286981,1746708638733,-427.6,0.0001315,2]
[360286982,1746708638742,-587.0,0.00013231,2]
[360286983,1746708638751,-3655.69,0.000133,2]
[360286984,1746708638760,-1875.6954997,0.00013333,2]
[360286985,1746708638770,-16437.57157955,0.000134,2]
[360286986,1746708638780,-151.0,0.000134,2]
[360286987,1746708638789,-151.0,0.000134,2]
[360286988,1746708638798,-1909.0941,0.000134,2]
[360286989,1746708638807,-400.0,0.00013424,2]
[360286990,1746708638816,-400.0,0.00013424,2]
[360286991,1746708638826,-400.0,0.00013424,2]
[360286992,1746708638835,-427.6,0.00013424,2]
[360286993,1746708638844,-2320.0092997,0.00013442,2]
[360286994,1746708638854,-9140.71658211,0.00013452,2]
[360286995,1746708638863,-693.85342545,0.000135,2]
[360286996,1746708638872,-2000.0,0.000136,3]
[360286997,1746708638881,-2000.0,0.000136,2]
[360286998,1746708638890,-2000.0,0.000136,2]
[360286999,1746708638899,-151.0,0.000136,2]
[360287000,1746708638910,-501.71425087,0.00013698,2]
[360287001,1746708638919,-400.0,0.00013698,2]
[360287002,1746708638928,-400.0,0.00013698,2]
[360287003,1746708638937,-400.0,0.00013698,2]
[360287004,1746708638946,-427.6,0.00013698,2]
[360287005,1746708638955,-500.0,0.00013699,2]
[360287006,1746708638963,-500.0,0.00013699,2]
[360287007,1746708638973,-206.639113,0.00013699,2]
[360287008,1746708638982,-206.639113,0.00013699,2]
[360287009,1746708638991,-206.639113,0.00013699,2]
[360287010,1746708638999,-206.639113,0.00013699,2]
[360287011,1746708639008,-206.639113,0.00013699,2]
[360287012,1746708639017,-206.639113,0.00013699,2]
[360287013,1746708639026,-206.639113,0.00013699,2]
[360287014,1746708639035,-206.639113,0.00013699,2]
[360287015,1746708639044,-206.639113,0.00013699,2]
[360287016,1746708639054,-206.639113,0.00013699,2]
[360287017,1746708639063,-206.639113,0.00013699,2]
[360287018,1746708639072,-206.639113,0.00013699,2]
[360287019,1746708639081,-206.639113,0.00013699,2]
[360287020,1746708639090,-206.639113,0.00013699,2]
[360287021,1746708639099,-206.639113,0.00013699,2]
[360287022,1746708639108,-206.639113,0.00013699,2]
[360287023,1746708639118,-206.639113,0.00013699,2]
[360287024,1746708639127,-206.639113,0.00013699,2]
[360287025,1746708639136,-206.639113,0.00013699,2]
[360287026,1746708639145,-206.639118,0.00013699,2]
[360287027,1746708639155,-151.0,0.00013699,2]
[360287028,1746708639164,-151.0,0.00013699,2]
[360287029,1746708639173,-151.0,0.00013699,2]
[360287030,1746708639182,-151.0,0.00013699,2]
[360287031,1746708639191,-151.0,0.00013699,2]
[360287032,1746708639201,-151.0,0.00013699,2]
[360287033,1746708639214,-199.399962,0.00013699,2]
[360287034,1746708639224,-199.399962,0.00013699,2]
[360287035,1746708639233,-199.399962,0.00013699,2]
[360287036,1746708639242,-199.399962,0.00013699,2]
[360287037,1746708639253,-199.399962,0.00013699,2]
[360287038,1746708639263,-199.399962,0.00013699,2]
[360287039,1746708639272,-199.399962,0.00013699,2]
[360287040,1746708639282,-199.399962,0.00013699,2]
[360287041,1746708639292,-199.399962,0.00013699,2]
[360287042,1746708639301,-199.399962,0.00013699,2]
[360287043,1746708639311,-199.399962,0.00013699,2]
[360287044,1746708639320,-199.399962,0.00013699,2]
[360287045,1746708639329,-199.399962,0.00013699,2]
[360287046,1746708639338,-199.399962,0.00013699,2]
[360287047,1746708639348,-199.399962,0.00013699,2]
[360287048,1746708639358,-199.399962,0.00013699,2]
[360287049,1746708639368,-199.399962,0.00013699,2]
[360287050,1746708639378,-199.399962,0.00013699,2]
[360287051,1746708639387,-199.399962,0.00013699,2]
[360287052,1746708639396,-199.399964,0.00013699,2]
[360287053,1746708639406,-6347.8603133,0.00013699,2]
[360287054,1746708639417,-331.021214,0.00013699,2]
[360287055,1746708639426,-331.021214,0.00013699,2]
[360287056,1746708639436,-331.021214,0.00013699,2]
[360287057,1746708639446,-331.021214,0.00013699,2]
[360287058,1746708639455,-331.021214,0.00013699,2]
[360287059,1746708639464,-331.021214,0.00013699,2]
[360287060,1746708639473,-331.021214,0.00013699,2]
[360287061,1746708639482,-331.021214,0.00013699,2]
[360287062,1746708639491,-1152.80004675,0.00013699,2]
[360287063,1746708639510,-816.91400794,0.00013699,2]
[360287079,1746708640633,-330.154,0.00013699,2]
[360287119,1746708643200,-1128.93609501,0.00013699,2]
[360287120,1746708643212,-397.93355892,0.00013699,2]
[360287151,1746708755007,21940.8773059,0.00010151,2]
[360287176,1746709389353,1013.0323373,9.944e-05,2]
[360287180,1746709510359,1045.0,0.0001,3]
[360287225,1746709832345,-171.90233329,0.0001045,2]
[360287226,1746709832356,-300.0,0.00010799,2]
[360287228,1746709832366,-17126.1833022,0.000108,2]
[360287230,1746709832376,-506.25609039,0.00010897,2]
[360287231,1746709832386,-6928.0,0.000109,2]
[360287232,1746709832396,-572.55438383,0.00010958,2]
[360287233,1746709832406,-401.85076122,0.00010958,2]
[360287234,1746709832416,-400.0,0.00010958,2]
[360287235,1746709832426,-400.0,0.00010958,2]
[360287237,1746709832436,-400.0,0.00010958,2]
[360287239,1746709832446,-400.0,0.00010958,2]
[360287241,1746709832456,-403.86603531,0.00010958,2]
[360287242,1746709832466,-500.0,0.00010971,2]
[360287244,1746709832476,-500.0,0.00011029,2]
[360287245,1746709832486,-500.0,0.00011029,2]
[360287246,1746709832495,-500.0,0.00011029,2]
[360287247,1746709832505,-500.0,0.00011029,2]
[360287248,1746709832514,-500.0,0.00011029,2]
[360287249,1746709832524,-500.0,0.00011029,2]
[360287250,1746709832533,-500.0,0.00011029,2]
[360287251,1746709832542,-500.0,0.00011033,2]
[360287252,1746709832552,-500.0,0.00011033,2]
[360287253,1746709832562,-500.0,0.00011033,2]
[360287254,1746709832574,-500.0,0.00011033,2]
[360287255,1746709832583,-500.0,0.00011033,2]
[360287256,1746709832593,-500.0,0.00011038,2]
[360287257,1746709832602,-500.0,0.00011038,2]
[360287259,1746709832614,-500.0,0.00011038,2]
[360287260,1746709832623,-500.0,0.00011038,2]
[360287261,1746709832633,-500.0,0.00011038,2]
[360287263,1746709832643,-400.0,0.00011232,2]
[360287265,1746709832655,-170.20816101,0.00011232,2]
[360287266,1746709832666,-300.99736869,0.00011232,2]
[360287267,1746709832676,-400.0,0.00011232,2]
[360287268,1746709832687,-842.21467215,0.00011459,2]
[360287269,1746709832696,-160.0,0.00011459,2]
[360287270,1746709832706,-160.0,0.00011459,2]
[360287271,1746709832716,-212.10144473,0.00011459,2]
[360287272,1746709832726,-160.0,0.00011459,2]
[360287273,1746709832735,-160.0,0.00011459,2]
[360287274,1746709832745,-160.0,0.00011459,2]
[360287275,1746709832755,-160.0,0.00011459,2]
[360287276,1746709832764,-12615.23506105,0.00011459,2]
[360287277,1746709832773,-160.0,0.00011459,2]
[360287278,1746709832783,-422.07246323,0.00011459,2]
[360287279,1746709832792,-400.0,0.00011506,2]
[360287280,1746709832802,-400.0,0.00011506,2]
[360287281,1746709832811,-400.0,0.0001178,2]
[360287282,1746709832821,-400.0,0.0001178,2]
[360287283,1746709832830,-420.0,0.00011869,2]
[360287284,1746709832840,-404.0,0.00011893,2]
[360287285,1746709832849,-400.0,0.00012054,2]
[360287286,1746709832859,-400.0,0.00012054,2]
[360287287,1746709832868,-175.50498633,0.00012149,2]
[360287288,1746709832878,-546.0,0.00012179,2]
[360287289,1746709832888,-2240.0,0.00012179,2]
[360287290,1746709832898,-708.0,0.00012179,2]
[360287291,1746709832907,-411.73780016,0.00012328,2]
[360287292,1746709832917,-400.0,0.00012328,2]
[360287293,1746709832926,-153.82,0.00012329,2]
[360287294,1746709832936,-769.14,0.00012329,2]
[360287295,1746709832945,-7332.7058139,0.000124,2]
[360287296,1746709832955,-7332.70581384,0.000124,2]
[360287297,1746709832966,-7332.70581384,0.00012521,2]
[360287298,1746709832975,-400.0,0.00012602,2]
[360287299,1746709832984,-2200.0,0.00012744,2]
[360287300,1746709832993,-7332.70581384,0.00012831,2]
[360287301,1746709833003,-400.0,0.00012876,2]
[360287302,1746709833012,-500.0,0.00012983,2]
[360287303,1746709833021,-635.0,0.00013,2]
[360287304,1746709833031,-587.0,0.00013045,2]
[360287305,1746709833040,-7332.70581384,0.00013141,2]
[360287306,1746709833049,-400.0,0.0001315,2]
[360287307,1746709833059,-3290.12,0.000133,2]
[360287308,1746709833068,-500.0,0.00013305,2]
[360287309,1746709833078,-400.0,0.00013424,2]
[360287310,1746709833087,-6818.63695356,0.00013452,2]
[360287311,1746709833100,-514.06886028,0.00013452,2]
[360287312,1746709833109,-500.0,0.000135,2]
[360287313,1746709833119,-214.2,0.000136,2]
[360287314,1746709833128,-2000.0,0.000136,2]
[360287315,1746709833138,-1500.5563998,0.0001363,2]
[360287316,1746709833148,-615.56946576,0.00013662,2]
[360287317,1746709833158,-400.0,0.00013698,2]
[360287318,1746709833168,-506.4621405,0.00013699,2]
[360287319,1746709833178,-500.0,0.00013699,2]
[360287320,1746709833188,-3435.432059,0.00013699,2]
[360287321,1746709833198,-189.04860005,0.00013699,2]
[360287322,1746709833208,-157.05882971,0.00013699,2]
[360287323,1746709833218,-204.0,0.00013699,2]
[360287324,1746709833228,-204.0,0.00013699,2]
[360287325,1746709833238,-204.0,0.00013699,2]
[360287326,1746709833247,-204.0,0.00013699,2]
[360287327,1746709833257,-204.0,0.00013699,2]
[360287328,1746709833266,-204.0,0.00013699,2]
[360287329,1746709833276,-204.0,0.00013699,2]
[360287330,1746709833286,-331.021214,0.00013699,2]
[360287331,1746709833296,-331.021214,0.00013699,2]
[360287332,1746709833306,-500.0,0.00013699,2]
[360287333,1746709833316,-161.55341689,0.00013699,2]
[360287334,1746709833326,-500.0,0.00013699,2]
[360287335,1746709833335,-151.0,0.00013699,2]
[360287336,1746709833345,-151.0,0.00013699,2]
[360287337,1746709833355,-500.0,0.00013699,2]
[360287338,1746709833364,-151.32295233,0.00013699,2]
[360287339,1746709833373,-200.19189041,0.00013699,2]
[360287340,1746709833383,-500.0,0.00013699,2]
[360287341,1746709833394,-151.0,0.00013699,2]
[360287342,1746709833404,-245.8455769,0.00013699,2]
[360287343,1746709833414,-500.0,0.00013699,2]
[360287344,1746709833423,-500.0,0.00013699,2]
[360287345,1746709833433,-151.0,0.00013699,2]
[360287346,1746709833443,-500.0,0.00013699,2]
[360287347,1746709833453,-500.0,0.00013699,2]
[360287348,1746709833463,-308.32911774,0.00013699,2]
[360287652,1746709846374,-500.0,0.00010895,2]
[360287653,1746709846385,-500.0,0.00010895,2]
[360287654,1746709846395,-465.99696525,0.00010895,2]
[360287655,1746709846405,-500.0,0.00010895,2]
[360287656,1746709846414,-500.0,0.00010895,2]
[360287657,1746709846425,-500.0,0.00010895,2]
[360287658,1746709846435,-531.55565622,0.00010895,2]
[360287659,1746709846444,-500.0,0.00010895,2]
[360287660,1746709846455,-500.0,0.00010895,2]
[360287661,1746709846465,-500.0,0.00010895,2]
[360287662,1746709846476,-500.0,0.00010895,2]
[360287663,1746709846485,-500.0,0.00010895,2]
[360287664,1746709846495,-500.0,0.00010895,2]
[360287665,1746709846504,-500.0,0.00010895,2]
[360287666,1746709846515,-232.92059103,0.00010895,2]
[360287667,1746709846524,-500.0,0.00010895,2]
[360287668,1746709846534,-500.0,0.00010895,2]
[360287669,1746709846543,-500.0,0.00010895,2]
[360287670,1746709846554,-500.0,0.00010895,2]
[360287671,1746709846565,-500.0,0.00010895,2]
[360287672,1746709846579,-500.0,0.00010895,2]
[360287673,1746709846588,-500.0,0.00010895,2]
[360287674,1746709846598,-500.0,0.00010895,2]
[360287675,1746709846609,-500.0,0.00010895,2]
[360287676,1746709846620,-500.0,0.00010895,2]
[360287677,1746709846630,-500.0,0.00010895,2]
[360287678,1746709846640,-500.0,0.00010895,2]
[360287679,1746709846653,-500.0,0.00010895,2]
[360287680,1746709846662,-500.0,0.00010895,2]
[360287681,1746709846672,-500.0,0.00010895,2]
[360287682,1746709846680,-500.0,0.00010895,2]
[360287683,1746709846689,-500.0,0.00010895,2]
[360287684,1746709846698,-500.0,0.00010959,2]
[360287685,1746709846706,-500.0,0.00010959,2]
[360287686,1746709846714,-343.08548032,0.00010959,2]
[360287714,1746710123271,14076.0176752,9.926e-05,2]
[360287718,1746710336201,664.0105039,9.909e-05,2]
[360287782,1746711032485,-1000.0,0.00010673,2]
[360287783,1746711032495,-303.28315495,0.0001079,2]
[360287784,1746711032505,-300.0,0.00010799,2]
[360287785,1746711032515,-300.0,0.00010799,2]
[360287786,1746711032526,-300.0,0.00010799,2]
[360287787,1746711032536,-1200.0,0.00010799,2]
[360287788,1746711032546,-300.0,0.00010799,2]
[360287789,1746711032555,-60000.0,0.000108,2]
[360287790,1746711032565,-303.28315493,0.00010876,2]
[360287791,1746711032574,-500.0,0.00010889,2]
[360287792,1746711032583,-500.0,0.00010889,2]
[360287793,1746711032593,-500.0,0.00010889,2]
[360287794,1746711032603,-186.55958612,0.00010889,2]
[360287795,1746711032613,-500.0,0.00010889,2]
[360287796,1746711032622,-500.0,0.00010889,2]
[360287797,1746711032632,-500.0,0.00010889,2]
[360287798,1746711032641,-500.0,0.00010889,2]
[360287799,1746711032651,-489.32866274,0.00010889,2]
[360287800,1746711032661,-500.0,0.00010889,2]
[360287801,1746711032672,-500.0,0.00010889,2]
[360287802,1746711032682,-500.0,0.00010889,2]
[360287803,1746711032691,-500.0,0.00010889,2]
[360287804,1746711032701,-500.0,0.00010889,2]
[360287805,1746711032712,-500.0,0.00010889,2]
[360287806,1746711032722,-500.0,0.00010889,2]
[360287807,1746711032732,-500.0,0.00010889,2]
[360287808,1746711032741,-500.0,0.00010889,2]
[360287809,1746711032751,-500.0,0.00010889,2]
[360287810,1746711032760,-500.0,0.00010889,2]
[360287811,1746711032769,-500.0,0.00010889,2]
[360287812,1746711032778,-500.0,0.00010889,2]
[360287813,1746711032788,-500.0,0.00010889,2]
[360287814,1746711032798,-500.0,0.00010889,2]
[360287815,1746711032807,-570.84502854,0.00010889,2]
[360287816,1746711032816,-500.0,0.00010889,2]
[360287817,1746711032826,-500.0,0.00010889,2]
[360287818,1746711032835,-500.0,0.00010889,2]
[360287819,1746711032844,-500.0,0.00010889,2]
[360287820,1746711032854,-266.03660365,0.00010889,2]
[360287821,1746711032863,-500.0,0.00010889,2]
[360287822,1746711032873,-500.0,0.00010889,2]
[360287823,1746711032882,-500.0,0.00010889,2]
[360287824,1746711032891,-500.0,0.00010889,2]
[360287825,1746711032901,-500.0,0.00010889,2]
[360287826,1746711032910,-500.0,0.00010889,2]
[360287827,1746711032919,-500.0,0.00010889,2]
[360287828,1746711032932,-500.0,0.00010889,2]
[360287829,1746711032941,-499.99999999,0.00010889,2]
[360287830,1746711032951,-157.97211085,0.0001089,2]
[360287831,1746711032960,-403.42461478,0.00010958,2]
[360287832,1746711032969,-403.70461256,0.00010958,2]
[360287833,1746711032979,-400.0,0.00010958,2]
[360287834,1746711032990,-400.0,0.00010958,2]
[360287835,1746711032999,-411.19272328,0.00010958,2]
[360287836,1746711033009,-420.39503112,0.00010958,2]
[360287837,1746711033018,-400.42601004,0.00010958,2]
[360287838,1746711033028,-409.4351603,0.00010958,2]
[360287839,1746711033037,-547.62742657,0.00010958,2]
[360287840,1746711033047,-494.67,0.00010958,2]
[360287841,1746711033057,-423.09244196,0.00010958,2]
[360287842,1746711033066,-400.0,0.00010958,2]
[360287843,1746711033075,-400.0,0.00010958,2]
[360287844,1746711033085,-400.0,0.00010958,2]
[360287845,1746711033094,-400.0,0.00010958,2]
[360287846,1746711033104,-400.0,0.00010958,2]
[360287847,1746711033113,-400.0,0.00010958,2]
[360287848,1746711033122,-405.20705944,0.00010958,2]
[360287849,1746711033131,-400.0,0.00010958,2]
[360287850,1746711033141,-400.0,0.00010958,2]
[360287851,1746711033150,-400.0,0.00010958,2]
[360287852,1746711033159,-400.0,0.00010958,2]
[360287853,1746711033169,-405.0000797,0.00010958,2]
[360287854,1746711033178,-400.0,0.00010958,2]
[360287855,1746711033187,-413.99147478,0.00010958,2]
[360287856,1746711033198,-400.0,0.00010958,2]
[360287857,1746711033207,-427.29,0.00010958,2]
[360287858,1746711033217,-400.0,0.00010958,2]
[360287859,1746711033226,-400.0,0.00010958,2]
[360287860,1746711033236,-400.0,0.00010958,2]
[360287861,1746711033245,-400.0,0.00010958,2]
[360287862,1746711033255,-400.0,0.00010958,2]
[360287863,1746711033264,-405.32662963,0.00010958,2]
[360287864,1746711033273,-400.0,0.00010958,2]
[360287865,1746711033283,-400.0,0.00010958,2]
[360287866,1746711033293,-400.0,0.00010958,2]
[360287867,1746711033302,-405.97544933,0.00010958,2]
[360287868,1746711033312,-408.27035249,0.00010958,2]
[360287869,1746711033321,-476.07,0.00010958,2]
[360287870,1746711033331,-400.0,0.00010958,2]
[360287871,1746711033340,-221.50110366,0.00010958,2]
[360287872,1746711033349,-400.0,0.00010958,2]
[360287873,1746711033359,-400.0,0.00010958,2]
[360287874,1746711033368,-400.0,0.00010958,2]
[360287875,1746711033378,-400.0,0.00010958,2]
[360287876,1746711033388,-400.0,0.00010958,2]
[360287877,1746711033397,-400.0,0.00010958,2]
[360287878,1746711033406,-400.0,0.00010958,2]
[360287879,1746711033416,-408.78151603,0.00010958,2]
[360287880,1746711033426,-400.0,0.00010958,2]
[360287881,1746711033435,-405.08773928,0.00010958,2]
[360287882,1746711033444,-402.30210646,0.00010958,2]
[360287883,1746711033454,-423.36620914,0.00010958,2]
[360287884,1746711033463,-412.98,0.00010958,2]
[360287885,1746711033472,-400.0,0.00010958,2]
[360287886,1746711033481,-400.0,0.00010958,2]
[360287887,1746711033491,-400.0,0.00010958,2]
[360287888,1746711033501,-400.0,0.00010958,2]
[360287889,1746711033510,-400.0,0.00010958,2]
[360287890,1746711033521,-400.0,0.00010958,2]
[360287891,1746711033530,-400.0,0.00010958,2]
[360287892,1746711033540,-400.0,0.00010958,2]
[360287893,1746711033549,-400.0,0.00010958,2]
[360287894,1746711033559,-227.91667282,0.00010958,2]
[360287895,1746711033568,-429.43821822,0.00010958,2]
[360287896,1746711033578,-410.7424441,0.00010958,2]
[360287897,1746711033587,-400.0,0.00010958,2]
[360287898,1746711033596,-400.0,0.00010958,2]
[360287899,1746711033605,-400.0,0.00010958,2]
[360287900,1746711033614,-259.61722375,0.00010958,2]
[360287901,1746711033623,-404.48488721,0.00010958,2]
[360287902,1746711033633,-400.0,0.00010958,2]
[360287903,1746711033642,-411.65523332,0.00010958,2]
[360287904,1746711033652,-400.0,0.00010958,2]
[360287905,1746711033661,-400.0,0.00010958,2]
[360287906,1746711033671,-400.0,0.00010958,2]
[360287907,1746711033680,-400.0,0.00010958,2]
[360287908,1746711033690,-400.0,0.00010958,2]
[360287909,1746711033699,-400.0,0.00010958,2]
[360287910,1746711033709,-400.0,0.00010958,2]
[360287911,1746711033719,-205.9626479,0.00010958,2]
[360287912,1746711033729,-401.0406252,0.00010958,2]
[360287913,1746711033739,-423.32174665,0.00010958,2]
[360287914,1746711033749,-415.41125974,0.00010958,2]
[360287915,1746711033759,-401.91129041,0.00010958,2]
[360287916,1746711033769,-400.0,0.00010958,2]
[360287917,1746711033778,-400.0,0.00010958,2]
[360287918,1746711033788,-400.0,0.00010958,2]
[360287919,1746711033798,-409.2194187,0.00010958,2]
[360287920,1746711033807,-400.0,0.00010958,2]
[360287921,1746711033817,-400.0,0.00010958,2]
[360287922,1746711033826,-400.0,0.00010958,2]
[360287923,1746711033836,-401.71114064,0.00010958,2]
[360287924,1746711033846,-400.0,0.00010958,2]
[360287925,1746711033855,-400.0,0.00010958,2]
[360287926,1746711033865,-402.20122279,0.00010958,2]
[360287927,1746711033875,-400.0,0.00010958,2]
[360287928,1746711033885,-404.31001341,0.00010958,2]
[360287929,1746711033895,-415.71666421,0.00010958,2]
[360287930,1746711033905,-404.00366542,0.00010958,2]
[360287931,1746711033914,-400.0,0.00010958,2]
[360287932,1746711033924,-404.57183447,0.00010958,2]
[360287933,1746711033938,-400.0,0.00010958,2]
[360287934,1746711033947,-400.0,0.00010958,2]
[360287935,1746711033957,-400.0,0.00010958,2]
[360287936,1746711033967,-404.45656314,0.00010958,2]
[360287937,1746711033977,-400.0,0.00010958,2]
[360287938,1746711033988,-510.47721875,0.00010958,2]
[360287939,1746711033997,-401.268966,0.00010958,2]
[360287940,1746711034008,-403.52206298,0.00010958,2]
[360287941,1746711034018,-406.9550497,0.00010958,2]
[360287942,1746711034028,-400.0,0.00010958,2]
[360287943,1746711034038,-400.0,0.00010958,2]
[360287944,1746711034047,-401.58013962,0.00010958,2]
[360287945,1746711034057,-400.0,0.00010958,2]
[360287946,1746711034066,-403.16968923,0.00010958,2]
[360287947,1746711034076,-414.56938361,0.00010958,2]
[360287948,1746711034086,-400.0,0.00010958,2]
[360287949,1746711034096,-400.0,0.00010958,2]
[360287950,1746711034106,-400.0,0.00010958,2]
[360287951,1746711034115,-400.0,0.00010958,2]
[360287952,1746711034124,-400.0,0.00010958,2]
[360287953,1746711034134,-405.54534969,0.00010958,2]
[360287954,1746711034144,-400.0,0.00010958,2]
[360287955,1746711034153,-545.57855199,0.00010958,2]
[360287956,1746711034163,-408.30801191,0.00010958,2]
[360287957,1746711034173,-400.0,0.00010958,2]
[360287958,1746711034182,-422.12844615,0.00010958,2]
[360287959,1746711034192,-400.0,0.00010958,2]
[360287960,1746711034201,-400.0,0.00010958,2]
[360287961,1746711034211,-402.50494025,0.00010958,2]
[360287962,1746711034220,-400.0,0.00010958,2]
[360287963,1746711034229,-400.0,0.00010958,2]
[360287964,1746711034243,-404.95499723,0.00010958,2]
[360287965,1746711034253,-400.0,0.00010958,2]
[360287966,1746711034262,-400.44299259,0.00010958,2]
[360287967,1746711034272,-174.01411071,0.00010958,2]
[360287968,1746711034282,-405.20107951,0.00010958,2]
[360287969,1746711034291,-453.97879175,0.00010958,2]
[360287970,1746711034301,-400.0,0.00010958,2]
[360287971,1746711034311,-400.0,0.00010958,2]
[360287972,1746711034321,-400.0,0.00010958,2]
[360287973,1746711034330,-400.0,0.00010958,2]
[360287974,1746711034340,-400.0,0.00010958,2]
[360287975,1746711034350,-301.48575291,0.00010958,2]
[360287976,1746711034360,-420.0,0.00010958,2]
[360287977,1746711034369,-400.0,0.00010958,2]
[360287978,1746711034379,-500.0,0.00010958,2]
[360287979,1746711034389,-500.0,0.00010958,2]
[360287980,1746711034399,-500.0,0.00010958,2]
[360287981,1746711034409,-500.0,0.00010958,2]
[360287982,1746711034418,-501.65572826,0.00010958,2]
[360287983,1746711034428,-400.0,0.00010958,2]
[360287984,1746711034438,-400.0,0.00010958,2]
[360287985,1746711034448,-400.0,0.00010958,2]